bitfinex/quotes_SOLUSD_20250326
["timestamp","ask_amount","ask_price","bid_price","bid_amount"]
[1742999438464,80.13150991,140.02,140.01,0.063]
[1742999438777,143.64896868,140.02,140.01,0.063]
[1742999439086,106.48115877,140.02,140.01,0.063]
[1742999439384,143.64896868,140.02,140.01,0.063]
[1742999439587,20.0,140.0,139.99,0.063]
[1742999439790,58.64964886,139.98,139.97,0.03]
[1742999439952,20.0,139.92,139.86,7.15]
[1742999440156,44.86780991,139.91,139.86,44.31780991]
[1742999440480,44.86780991,139.91,139.85,50.80300991]
[1742999440481,37.16780991,139.9,139.85,50.80300991]
[1742999440862,44.86780991,139.91,139.86,37.16780991]
[1742999441458,44.86780991,139.91,139.86,44.31770991]
[1742999441762,57.16780991,139.9,139.85,50.80300991]
[1742999441962,138.86780991,139.9,139.85,50.80300991]
[1742999442170,138.86780991,139.9,139.85,13.6352]
[1742999442171,37.16780991,139.89,139.85,13.6352]
[1742999442387,118.86780991,139.89,139.84,44.31860991]
[1742999442569,37.16780991,139.87,139.83,7.1513]
[1742999442770,7.7,139.86,139.83,7.1513]
[1742999443274,7.7,139.86,139.83,44.31910991]
[1742999444384,7.7,139.86,139.85,37.16780991]
[1742999445676,7.7,139.86,139.85,44.31830991]
[1742999446278,81.7,139.88,139.85,62.19450991]
[1742999446512,81.7,139.88,139.87,37.16780991]
[1742999446686,27.7,139.9,139.86,37.16780991]
[1742999446861,27.7,139.9,139.85,7.1505]
[1742999446862,37.16780991,139.89,139.85,7.1505]
[1742999447263,64.86780991,139.9,139.85,7.1505]
[1742999447488,27.7,139.9,139.87,37.16780991]
[1742999447792,27.7,139.9,139.87,44.31690991]
[1742999448176,27.7,139.9,139.85,17.8762]
[1742999448177,64.86780991,139.9,139.85,37.16780991]
[1742999448499,64.86780991,139.9,139.84,7.151]
[1742999448500,20.0,139.88,139.84,44.31880991]
[1742999450888,20.0,139.88,139.84,30.4593493]
[1742999452092,43.3083493,139.88,139.83,7.1513]
[1742999453584,81.7,139.89,139.87,23.3083493]
[1742999453771,81.7,139.89,139.86,23.3083493]
[1742999454272,81.7,139.89,139.85,23.3083493]
[1742999455274,81.7,139.89,139.86,23.3083493]
[1742999455679,20.0,139.88,139.83,17.8788]
[1742999455997,81.7,139.89,139.87,23.3083493]
[1742999456297,81.7,139.89,139.86,23.3383493]
[1742999456486,81.7,139.89,139.86,0.03]
[1742999456992,81.7,139.89,139.86,23.3383493]
[1742999457301,81.7,139.89,139.86,0.03]
[1742999457671,20.0,139.88,139.86,0.03]
[1742999457878,81.7,139.89,139.86,0.03]
[1742999458385,81.7,139.89,139.86,23.3383493]
[1742999458893,81.7,139.89,139.86,0.03]
[1742999459094,81.7,139.89,139.86,23.3383493]
[1742999459291,81.7,139.89,139.87,23.3083493]
[1742999459496,81.7,139.89,139.86,23.3383493]
[1742999460100,81.7,139.89,139.86,30.4878493]
[1742999460671,101.7,139.93,139.88,23.3083493]
[1742999460878,7.7,139.94,139.91,23.3083493]
[1742999461199,290.7362,139.96,139.92,23.3083493]
[1742999461403,0.063,139.97,139.95,23.3083493]
[1742999461574,0.063,139.97,139.96,23.3083493]
[1742999462008,159.8585,140.06,139.96,23.3083493]
[1742999462009,81.7,140.07,139.97,60.7271]
[1742999462184,7.7,140.08,140.05,23.3083493]
[1742999462391,23.3083493,140.06,139.99,23.3083493]
[1742999462580,23.3083493,140.02,139.97,30.4526493]
[1742999462783,7.7,140.01,139.98,23.3083493]
[1742999463004,7.7,140.01,139.97,7.1443]
[1742999463005,7.7,140.01,140.0,37.21307105]
[1742999463174,7.7,140.01,139.99,37.21307105]
[1742999463381,7.7,140.01,140.0,37.21307105]
[1742999463907,7.7,140.01,139.97,25.0052]
[1742999464076,37.21307105,139.99,139.94,37.21307105]
[1742999464277,37.21307105,139.96,139.91,37.21307105]
[1742999464483,37.21307105,139.94,139.87,6.1934]
[1742999464676,44.91307105,139.93,139.88,37.21307105]
[1742999465101,7.7,139.93,139.88,37.21307105]
[1742999465398,7.7,139.93,139.89,37.21307105]
[1742999465603,7.7,139.95,139.91,37.21307105]
[1742999465781,7.7,139.95,139.92,37.21307105]
[1742999465977,7.7,139.95,139.93,37.21307105]
[1742999466194,101.7,139.98,139.94,37.21307105]
[1742999466378,7.7,139.97,139.95,37.21307105]
[1742999466579,7.7,139.98,139.95,37.21307105]
[1742999466781,44.91307105,139.98,139.93,37.21307105]
[1742999467000,37.21307105,139.97,139.87,43.67274886]
[1742999467198,37.21307105,139.95,139.9,37.21307105]
[1742999467395,37.21307105,139.94,139.87,7.1494]
[1742999467587,37.21307105,139.92,139.87,37.21307105]
[1742999467790,7.7,139.93,139.86,44.39287105]
[1742999467791,37.21307105,139.91,139.86,44.39287105]
[1742999467987,37.21307105,139.91,139.87,0.03]
[1742999468597,37.21307105,139.89,139.87,0.03]
[1742999468782,44.91307105,139.88,139.87,0.03]
[1742999469118,7.7,139.88,139.87,0.03]
[1742999469478,64.91307105,139.88,139.87,0.03]
[1742999470082,27.7,139.88,139.87,0.03]
[1742999470382,64.91307105,139.88,139.87,0.03]
[1742999470995,7.7,139.88,139.87,0.03]
[1742999471481,44.91307105,139.88,139.87,0.03]
[1742999472095,7.7,139.88,139.87,0.03]
[1742999473104,20.0,139.93,139.87,0.03]
[1742999473307,37.21307105,139.9,139.87,0.03]
[1742999473814,37.21307105,139.88,139.87,0.03]
[1742999474385,37.21307105,139.9,139.87,0.03]
[1742999474585,138.91307105,139.91,139.87,0.03]
[1742999475087,37.21307105,139.9,139.87,0.03]
[1742999475287,37.21307105,139.88,139.87,0.03]
[1742999478813,20.0,139.89,139.87,0.03]
[1742999479001,7.7,139.88,139.87,0.03]
[1742999479520,44.91307105,139.88,139.87,0.03]
[1742999480092,7.7,139.88,139.87,0.03]
[1742999480516,44.91307105,139.88,139.87,0.03]
[1742999481388,7.7,139.88,139.87,0.03]
[1742999482220,101.7,139.93,139.87,37.24307105]
[1742999482389,7.7,139.93,139.91,37.21307105]
[1742999482589,7.7,139.93,139.92,37.21307105]
[1742999484121,0.063,139.97,139.92,37.21307105]
[1742999484304,0.063,139.97,139.96,44.35787105]
[1742999484512,0.063,139.97,139.95,37.21307105]
[1742999484702,0.063,139.97,139.92,37.21307105]
[1742999485017,37.27607105,139.97,139.92,37.21307105]
[1742999485711,0.063,139.97,139.95,37.21307105]
[1742999485912,0.063,139.97,139.96,37.21307105]
[1742999486213,0.063,139.97,139.92,25.0141]
[1742999486407,0.063,139.97,139.95,37.21307105]
[1742999486603,0.063,139.97,139.96,37.21307105]
[1742999487110,0.063,139.97,139.95,37.21307105]
[1742999487492,0.063,139.97,139.96,37.21307105]
[1742999488615,0.063,139.97,139.96,69.62941991]
[1742999488915,60.07507105,140.11,140.0,20.0]
[1742999489217,0.063,140.11,140.09,37.21307105]
[1742999490104,0.063,140.11,140.1,37.21307105]
[1742999490909,0.063,140.11,140.06,13.7615]
[1742999491116,0.063,140.11,140.04,18.64964886]
[1742999491117,0.063,140.11,140.07,37.21307105]
[1742999491409,37.21307105,140.1,140.05,37.21307105]
[1742999491609,37.21307105,140.07,140.02,37.21307105]
[1742999491816,37.21307105,140.06,140.01,37.21307105]
[1742999491997,37.21307105,140.04,139.98,37.21307105]
[1742999492388,37.21307105,140.05,139.99,37.21307105]
[1742999492589,10.5339,140.07,140.01,37.21307105]
[1742999492590,37.21307105,140.06,140.01,37.21307105]
[1742999492817,7.68,140.07,140.03,37.21307105]
[1742999493915,44.89307105,140.07,140.02,37.21307105]
[1742999494214,7.68,140.07,140.02,37.21307105]
[1742999494518,7.68,140.07,139.96,25.02124886]
[1742999494519,37.21307105,140.06,140.01,37.21307105]
[1742999494898,44.89307105,140.07,140.01,37.21307105]
[1742999495214,37.21307105,140.04,139.99,37.21307105]
[1742999495403,37.21307105,140.03,139.98,37.21307105]
[1742999495713,37.21307105,140.02,139.96,37.21307105]
[1742999495896,7.68,140.02,139.97,37.21307105]
[1742999496098,7.68,140.02,139.98,37.21307105]
[1742999496509,44.89307105,140.02,139.95,7.1453]
[1742999496814,44.89307105,140.02,139.96,37.21307105]
[1742999497020,37.21307105,140.01,139.96,37.21307105]
[1742999497202,7.68,140.02,139.97,37.21307105]
[1742999497409,7.68,140.02,139.98,37.21307105]
[1742999498006,7.68,140.02,140.0,37.21307105]
[1742999498312,7.68,140.02,139.98,37.21307105]
[1742999498712,44.89307105,140.02,139.94,7.1459]
[1742999498892,44.89307105,140.02,139.96,37.21307105]
[1742999499298,7.68,140.02,139.99,37.21307105]
[1742999499708,37.21307105,140.01,139.95,37.21307105]
[1742999499908,37.21307105,139.99,139.94,37.21307105]
[1742999500109,37.21307105,139.99,139.93,37.21307105]
[1742999500312,37.21307105,139.98,139.93,37.21307105]
[1742999500502,37.21307105,139.98,139.92,37.21307105]
[1742999500714,37.21307105,139.98,139.93,37.21307105]
[1742999500899,37.21307105,139.96,139.87,13.9273]
[1742999501094,37.21307105,139.97,139.88,7.1489]
[1742999501291,20.0,139.98,139.92,37.21307105]
[1742999501497,37.21307105,139.97,139.92,37.21307105]
[1742999501903,20.0,139.98,139.92,37.21307105]
[1742999502198,37.21307105,139.96,139.91,37.21307105]
[1742999502397,44.89307105,139.97,139.91,37.21307105]
[1742999502598,37.21307105,139.96,139.91,37.21307105]
[1742999502816,37.21307105,139.96,139.88,7.1489]
[1742999502817,37.21307105,139.95,139.9,37.21307105]
[1742999503024,7.68,139.97,139.89,37.21307105]
[1742999503025,37.21307105,139.94,139.89,37.21307105]
[1742999503319,22.8171,139.96,139.88,7.1489]
[1742999503320,60.03017105,139.96,139.9,37.21307105]
[1742999503510,2.8171,139.96,139.92,37.21307105]
[1742999503823,37.21307105,139.95,139.89,37.21307105]
[1742999504032,37.21307105,139.94,139.9,0.03]
[1742999504202,22.8171,139.96,139.9,37.24307105]
[1742999504203,37.21307105,139.95,139.9,37.24307105]
[1742999504398,60.03017105,139.96,139.9,37.24307105]
[1742999504817,37.21307105,139.95,139.9,37.24307105]
[1742999505027,2.8171,139.96,139.91,37.21307105]
[1742999505524,37.21307105,139.95,139.9,37.24307105]
[1742999505820,2.8171,139.96,139.9,0.03]
[1742999505821,37.21307105,139.93,139.9,0.03]
[1742999506320,37.21307105,139.91,139.9,0.03]
[1742999506526,64.89307105,139.92,139.9,0.03]
[1742999506908,37.21307105,139.91,139.9,0.03]
[1742999508418,27.68,139.92,139.9,0.03]
[1742999508614,145.0648,139.96,139.9,37.24307105]
[1742999508615,81.7,139.95,139.9,37.24307105]
[1742999508818,7.68,139.94,139.92,37.21307105]
[1742999509025,7.68,139.94,139.91,37.21307105]
[1742999509326,7.68,139.94,139.9,37.24307105]
[1742999509534,118.91307105,139.93,139.9,0.03]
[1742999509831,27.68,139.94,139.9,0.03]
[1742999509832,101.7,139.92,139.9,0.03]
[1742999510013,138.91307105,139.92,139.9,0.03]
[1742999510215,7.68,139.91,139.9,0.03]
[1742999512620,81.7,139.92,139.9,0.03]
[1742999513434,89.38,139.92,139.9,0.03]
[1742999514048,7.68,139.94,139.91,37.21307105]
[1742999514328,7.68,139.94,139.92,37.21307105]
[1742999514534,22.6715,140.0,139.93,37.21307105]
[1742999514714,10.3515,140.0,139.93,37.21307105]
[1742999515033,10.3515,140.0,139.97,44.35737105]
[1742999515224,81.7,140.01,139.98,37.21307105]
[1742999516434,81.7,140.01,139.97,37.21307105]
[1742999517132,81.7,140.01,139.97,55.83893569]
[1742999517337,137.53893569,140.01,139.96,55.83893569]
[1742999517538,81.7,140.01,139.97,55.83893569]
[1742999518136,81.7,140.01,139.98,55.83893569]
[1742999518431,81.7,140.01,139.99,55.83893569]
[1742999519035,2.8354,140.04,139.99,55.83893569]
[1742999519334,2.8354,140.04,140.0,55.83893569]
[1742999519542,81.7,140.06,140.02,55.83893569]
[1742999519717,7.743,140.07,140.02,55.83893569]
[1742999520038,0.063,140.07,140.02,55.83893569]
[1742999520341,0.063,140.07,139.97,7.1443]
[1742999520342,75.83893569,140.06,139.97,7.1443]
[1742999520511,157.53893569,140.06,140.01,55.83893569]
[1742999520937,55.83893569,140.04,139.99,55.83893569]
[1742999521117,55.83893569,140.04,139.94,55.83893569]
[1742999521118,55.83893569,140.0,139.94,55.83893569]
[1742999521317,75.83893569,140.02,139.96,55.83893569]
[1742999521638,55.83893569,140.02,139.97,55.83893569]
[1742999522047,55.83893569,140.02,139.96,55.83893569]
[1742999522339,55.83893569,139.99,139.93,55.83893569]
[1742999522522,84.4075,140.01,139.96,55.83893569]
[1742999522721,84.4075,140.01,139.97,55.83893569]
[1742999522928,84.4075,140.01,139.98,55.83893569]
[1742999522929,81.7,140.01,139.98,55.83893569]
[1742999523148,58.54643569,140.05,140.0,55.83893569]
[1742999523735,58.54643569,140.05,139.95,7.68]
[1742999523736,55.83893569,140.04,139.99,55.83893569]
[1742999524042,58.54643569,140.05,140.0,55.83893569]
[1742999524247,2.7075,140.05,140.0,55.83893569]
[1742999524441,58.54643569,140.05,140.0,55.83893569]
[1742999524836,55.83893569,140.01,139.94,7.1459]
[1742999525033,2.7075,140.05,140.0,55.83893569]
[1742999525345,2.7075,140.05,140.02,55.83893569]
[1742999525567,55.83893569,140.04,139.99,55.83893569]
[1742999525848,55.83893569,140.03,139.97,55.83893569]
[1742999526018,55.83893569,140.03,139.98,55.83893569]
[1742999526218,55.83893569,140.02,139.94,25.0106]
[1742999526415,55.83893569,140.02,139.97,55.83893569]
[1742999526635,137.53893569,140.03,139.98,55.83893569]
[1742999526836,55.83893569,140.02,139.94,25.0106]
[1742999527030,55.83893569,140.02,139.97,55.83893569]
[1742999527229,81.7,140.03,139.99,55.83893569]
[1742999527628,137.53893569,140.03,139.98,55.83893569]
[1742999528527,81.7,140.03,139.98,55.83893569]
[1742999528835,81.7,140.03,140.0,55.83893569]
[1742999529346,81.7,140.03,140.0,62.98163569]
[1742999530141,81.7,140.03,140.0,7.1427]
[1742999530361,81.7,140.03,140.0,62.98163569]
[1742999530648,81.7,140.03,140.02,55.83893569]
[1742999530944,2.7705,140.05,140.02,55.83893569]
[1742999531447,2.7705,140.05,140.02,62.98063569]
[1742999531640,2.7705,140.05,140.01,62.98103569]
[1742999532050,0.063,140.05,140.04,55.83893569]
[1742999532844,0.063,140.07,140.04,74.48858455]
[1742999533031,0.063,140.07,140.02,18.64964886]
[1742999533230,0.063,140.07,140.06,55.83893569]
[1742999533440,0.063,140.07,140.06,62.97863569]
[1742999534634,0.063,140.07,140.06,137.46722024]
[1742999534829,0.063,140.07,140.06,151.51502024]
[1742999535044,0.063,140.07,140.06,77.02643569]
[1742999535440,0.063,140.07,140.06,69.36643569]
[1742999536336,0.063,140.07,140.06,55.83893569]
[1742999536570,0.063,140.07,140.05,55.83893569]
[1742999537148,55.90193569,140.07,139.99,18.64964886]
[1742999537329,55.90193569,140.07,140.02,55.83893569]
[1742999537527,0.063,140.07,140.02,55.83893569]
[1742999537834,0.063,140.07,140.04,55.83893569]
[1742999538032,0.063,140.07,140.03,55.83893569]
[1742999538430,0.063,140.07,140.05,55.83893569]
[1742999538957,0.063,140.07,140.04,37.19012833]
[1742999539332,0.063,140.07,140.05,37.19012833]
[1742999540141,0.063,140.07,140.05,44.33032833]
[1742999540346,0.063,140.07,140.05,37.19012833]
[1742999540661,0.063,140.07,140.03,37.19012833]
[1742999541431,37.25312833,140.07,140.05,0.03]
[1742999541651,37.19012833,140.06,140.05,0.03]
[1742999541952,81.763,140.07,140.05,0.03]
[1742999542255,138.89012833,140.06,140.05,0.03]
[1742999542546,20.0,140.04,139.97,0.03]
[1742999542757,22.6955,140.02,139.97,0.03]
[1742999543052,59.88562833,140.02,139.97,0.03]
[1742999543250,37.19012833,140.01,139.97,0.03]
[1742999544155,37.19012833,140.0,139.97,0.03]
[1742999544357,37.19012833,139.99,139.97,0.03]
[1742999544536,37.19012833,140.0,139.97,0.03]
[1742999545136,37.19012833,140.01,139.97,0.03]
[1742999545332,22.6955,140.02,139.97,37.22012833]
[1742999545532,59.88562833,140.02,139.97,0.03]
[1742999545742,37.19012833,140.01,139.97,0.03]
[1742999547356,22.6955,140.02,139.97,37.22012833]
[1742999547547,2.6955,140.02,139.98,37.19012833]
[1742999547750,2.6955,140.02,139.99,44.33342833]
[1742999548556,2.6955,140.02,139.98,37.19012833]
[1742999548855,149.38442833,140.06,140.0,37.19012833]
[1742999549057,118.89012833,140.05,140.0,37.19012833]
[1742999549261,118.89012833,140.05,139.98,7.1436]
[1742999549262,37.19012833,140.03,139.98,7.1436]
[1742999549440,118.89012833,140.03,139.98,44.33372833]
[1742999549641,81.7,140.03,139.98,44.33372833]
[1742999549837,81.7,140.02,139.98,7.1436]
[1742999550242,37.19012833,140.0,139.97,0.03]
[1742999550557,37.19012833,139.99,139.97,0.03]
[1742999550783,37.19012833,140.0,139.97,0.03]
[1742999551072,152.90192833,140.01,139.97,0.03]
[1742999551475,37.19012833,140.0,139.97,0.03]
[1742999551685,152.90192833,140.01,139.97,0.03]
[1742999551975,152.90192833,140.01,139.97,44.36412833]
[1742999551976,109.36,140.01,139.97,44.36412833]
[1742999552552,109.36,140.01,139.97,7.174]
[1742999552767,146.55012833,140.01,139.97,0.03]
[1742999553445,37.19012833,140.0,139.97,0.03]
[1742999553778,39.87072833,139.98,139.97,0.03]
[1742999555477,2.6806,139.98,139.97,0.03]
[1742999556079,39.87072833,139.98,139.97,0.03]
[1742999556985,2.6806,139.98,139.97,0.03]
[1742999557476,81.7,139.99,139.97,37.22012833]
[1742999557677,7.66,140.01,139.98,37.19012833]
[1742999557974,7.66,140.01,139.99,7.1433]
[1742999558682,7.66,140.01,139.98,44.33372833]
[1742999558877,7.66,140.01,139.99,37.19012833]
[1742999559107,81.7,140.03,140.0,37.19012833]
[1742999559286,81.7,140.03,140.01,37.19012833]
[1742999559486,84.226,140.06,140.02,37.19012833]
[1742999559665,81.7,140.06,140.05,37.19012833]
[1742999560280,81.7,140.06,140.04,44.33072833]
[1742999560574,81.7,140.06,140.03,44.33132833]
[1742999560776,81.7,140.06,140.02,37.19012833]
[1742999560983,81.7,140.06,140.03,37.19012833]
[1742999561277,81.7,140.06,140.04,37.19012833]
[1742999561783,81.7,140.06,140.03,37.19012833]
[1742999562167,81.7,140.06,140.01,37.19012833]
[1742999562363,118.89012833,140.06,140.01,37.19012833]
[1742999562567,118.89012833,140.06,140.0,37.19012833]
[1742999562568,57.19012833,140.05,140.0,37.19012833]
[1742999562876,20.0,140.05,140.01,37.19012833]
[1742999563668,81.7,140.04,140.0,37.19012833]
[1742999563874,81.7,140.04,140.02,37.19012833]
[1742999564069,0.063,140.07,140.03,37.19012833]
[1742999564367,0.063,140.07,140.05,37.19012833]
[1742999564564,0.063,140.07,140.04,44.33092833]
[1742999564763,0.063,140.07,140.03,37.19012833]
[1742999565860,0.063,140.07,140.04,37.19012833]
[1742999566059,0.063,140.07,140.05,37.19012833]
[1742999566369,0.063,140.07,140.03,44.33122833]
[1742999566975,20.063,140.07,140.03,37.19012833]
[1742999568196,0.063,140.07,140.03,37.19012833]
[1742999568389,0.063,140.07,140.03,44.33112833]
[1742999568564,0.063,140.07,140.05,37.19012833]
[1742999568966,0.063,140.07,140.06,37.19012833]
[1742999570388,0.063,140.07,140.06,44.32982833]
[1742999571687,0.063,140.07,140.05,37.19012833]
[1742999571891,0.063,140.07,140.04,37.19012833]
[1742999572601,20.063,140.07,140.02,37.19012833]
[1742999573089,22.573,140.02,139.96,37.19012833]
[1742999573294,22.573,140.02,139.96,44.33492833]
[1742999573295,37.19012833,140.01,139.96,44.33492833]
[1742999573494,22.573,140.02,139.96,44.33492833]
[1742999573495,59.76312833,140.02,139.96,44.33492833]
[1742999573786,59.76312833,140.02,139.98,37.19012833]
[1742999573787,22.573,140.02,139.98,37.19012833]
[1742999573994,2.573,140.02,139.98,37.19012833]
[1742999574165,2.573,140.02,139.99,37.19012833]
[1742999574665,2.573,140.02,139.97,0.03]
[1742999574864,2.573,140.02,139.97,37.22012833]
[1742999575101,81.7,140.05,140.01,37.19012833]
[1742999575299,81.7,140.05,140.02,37.19012833]
[1742999575504,2.7542,140.06,140.03,37.19012833]
[1742999575673,2.7542,140.06,140.04,37.19012833]
[1742999575863,7.723,140.07,140.05,37.19012833]
[1742999575864,0.063,140.07,140.05,37.19012833]
[1742999576070,0.063,140.07,140.06,37.19012833]
[1742999576603,0.063,140.07,140.06,44.32982833]
[1742999578381,0.063,140.07,140.06,100.16960552]
[1742999578576,0.063,140.11,140.07,18.64964886]
[1742999578784,0.063,140.11,140.1,37.19012833]
[1742999580505,0.063,140.11,140.1,44.32782833]
[1742999581012,0.063,140.11,140.06,7.1397]
[1742999581184,37.19012833,140.09,140.04,37.19012833]
[1742999581383,37.19012833,140.09,140.03,0.03]
[1742999581384,39.85782833,140.1,140.05,37.19012833]
[1742999581709,2.6677,140.1,140.05,37.19012833]
[1742999581915,2.6677,140.1,140.06,37.19012833]
[1742999582283,2.6677,140.1,140.07,37.19012833]
[1742999582710,0.063,140.11,140.09,37.19012833]
[1742999582915,0.063,140.11,140.04,7.1408]
[1742999583117,57.25312833,140.11,140.05,37.19012833]
[1742999583407,57.25312833,140.11,140.06,37.19012833]
[1742999583708,57.25312833,140.11,140.05,37.19012833]
[1742999584013,57.19012833,140.09,140.03,37.22012833]
[1742999584191,37.19012833,140.08,140.03,0.03]
[1742999584391,37.19012833,140.09,140.04,37.19012833]
[1742999584582,81.7,140.1,140.06,37.19012833]
[1742999584784,118.89012833,140.1,140.05,37.19012833]
[1742999584999,81.7,140.1,140.06,37.19012833]
[1742999585198,0.063,140.11,140.07,37.19012833]
[1742999585510,0.063,140.11,140.08,37.19012833]
[1742999586095,0.063,140.11,140.1,37.19012833]
[1742999586622,0.063,140.11,140.1,44.32782833]
[1742999586790,2.567,140.2,140.11,18.64964886]
[1742999587005,2.567,140.2,140.16,37.19012833]
[1742999587306,2.567,140.2,140.19,37.19012833]
[1742999587307,0.063,140.2,140.19,37.19012833]
[1742999588581,0.063,140.2,140.19,62.97287719]
[1742999588795,0.063,140.2,140.19,44.32322833]
[1742999589005,0.063,140.2,140.19,37.19012833]
[1742999589515,0.063,140.2,140.15,6.4838]
[1742999589711,0.063,140.2,140.16,37.19012833]
[1742999590031,37.19012833,140.19,140.13,37.19012833]
[1742999590608,37.19012833,140.18,140.12,37.19012833]
[1742999591187,6.1232,140.19,140.15,37.19012833]
[1742999591502,6.1232,140.19,140.11,7.137]
[1742999591503,0.063,140.2,140.17,37.19012833]
[1742999592303,0.063,140.2,140.11,51.26974886]
[1742999592497,0.063,140.2,140.15,37.19012833]
[1742999592700,0.063,140.2,140.16,37.19012833]
[1742999595016,37.19012833,140.19,140.14,37.19012833]
[1742999595213,0.063,140.2,140.14,37.19012833]
[1742999595402,0.063,140.2,140.16,37.19012833]
[1742999595920,37.19012833,140.19,140.13,37.19012833]
[1742999596116,37.19012833,140.18,140.12,37.19012833]
[1742999596314,37.19012833,140.15,140.08,7.1384]
[1742999596515,20.0,140.17,140.11,37.19012833]
[1742999596721,37.19012833,140.15,140.1,37.19012833]
[1742999596919,37.19012833,140.15,140.1,44.32782833]
[1742999597234,37.19012833,140.15,140.09,7.138]
[1742999597531,37.19012833,140.15,140.1,37.19012833]
[1742999598225,101.7,140.17,140.11,37.19012833]
[1742999598226,37.19012833,140.16,140.11,37.19012833]
[1742999598430,118.89012833,140.17,140.12,37.19012833]
[1742999599224,138.89012833,140.17,140.12,7.1366]
[1742999599525,160.37012833,140.17,140.12,7.1366]
[1742999599730,138.89012833,140.17,140.12,7.1366]
[1742999599926,118.89012833,140.17,140.12,44.32672833]
[1742999600141,0.063,140.2,140.16,37.19012833]
[1742999600309,0.063,140.2,140.19,37.19012833]
[1742999600512,0.063,140.2,140.14,88.3693]
[1742999600839,0.063,140.2,140.12,7.1366]
[1742999600840,37.19012833,140.18,140.12,7.1366]
[1742999601038,89.34,140.19,140.15,7.1352]
[1742999601341,89.34,140.19,140.16,37.19012833]
[1742999601542,89.34,140.19,140.15,44.32532833]
[1742999601744,81.7,140.19,140.17,37.19012833]
[1742999602242,0.063,140.2,140.17,37.19012833]
[1742999602447,0.063,140.2,140.18,37.19012833]
[1742999602844,0.063,140.2,140.16,37.19012833]
[1742999604112,0.063,140.2,140.17,37.19012833]
[1742999604717,0.063,140.2,140.16,37.19012833]
[1742999605335,37.25312833,140.2,140.15,37.19012833]
[1742999605818,37.19012833,140.19,140.12,7.1367]
[1742999606022,37.19012833,140.16,140.11,44.35722833]
[1742999606321,37.19012833,140.15,140.11,0.03]
[1742999606520,37.19012833,140.16,140.11,7.167]
[1742999606721,7.64,140.18,140.14,37.19012833]
[1742999606935,7.64,140.18,140.15,37.19012833]
[1742999607224,81.763,140.2,140.16,44.32452833]
[1742999607533,37.19012833,140.19,140.14,37.19012833]
[1742999607730,118.95312833,140.2,140.15,37.19012833]
[1742999608543,37.19012833,140.19,140.14,37.19012833]
[1742999609420,37.19012833,140.19,140.12,7.1367]
[1742999609631,37.19012833,140.16,140.11,0.03]
[1742999609852,37.19012833,140.15,140.11,0.03]
[1742999610526,37.19012833,140.16,140.11,44.35722833]
[1742999610727,44.83012833,140.17,140.12,37.19012833]
[1742999611123,7.64,140.17,140.12,37.19012833]
[1742999611323,44.83012833,140.17,140.12,37.19012833]
[1742999611633,7.64,140.17,140.13,37.19012833]
[1742999612225,7.64,140.17,140.12,7.1365]
[1742999612226,44.83012833,140.17,140.12,44.32662833]
[1742999612457,44.83012833,140.17,140.11,7.167]
[1742999612750,37.19012833,140.16,140.11,44.35712833]
[1742999613243,7.64,140.17,140.13,37.19012833]
[1742999613545,7.64,140.17,140.12,37.19012833]
[1742999613748,7.64,140.17,140.13,37.19012833]
[1742999614568,7.64,140.17,140.12,44.32682833]
[1742999615048,37.19012833,140.14,140.11,0.03]
[1742999615623,37.19012833,140.13,140.11,0.03]
[1742999615826,64.83012833,140.12,140.11,0.03]
[1742999616748,44.83012833,140.12,140.11,0.03]
[1742999616930,7.64,140.12,140.11,0.03]
[1742999617251,20.0,140.1,140.05,0.03]
[1742999617421,37.19012833,140.06,140.05,0.03]
[1742999618046,7.64,140.07,140.05,0.03]
[1742999618047,44.83012833,140.07,140.05,0.03]
[1742999618650,37.19012833,140.06,140.05,0.03]